[Event "Titled Tuesday Blitz April 18 Early 2023"]
[White "Molina, Roberto Junio Brito"]
[Black "SashaKuzhilniy"]
[WhiteFideId "2109450"]
[WhiteElo "2376"]
[BlackElo "2564"]
[Result "1-0"]
[Round "07"]
[TimeControl "180+2"]
[Date "2023.04.18"]
[WhiteClock "0:01:13"]
[BlackClock "0:00:17"]

1. d4 {[%clk 0:03:00]}  Nf6 {[%clk 0:02:59]} 2. c4 {[%clk 0:03:01]}  e5 {[%clk 0:02:59]} 3. dxe5 {[%clk 0:03:01]}  Ng4 {[%clk 0:03:00]} 4. Bf4 {[%clk 0:03:01]}  Nc6 {[%clk 0:03:00]} 5. Nf3 {[%clk 0:03:01]}  Bb4+ {[%clk 0:02:59]} 6. Nbd2 {[%clk 0:03:01]}  Qe7 {[%clk 0:02:59]} 7. e3 {[%clk 0:03:01]}  Ngxe5 {[%clk 0:02:58]} 8. Nxe5 {[%clk 0:03:01]}  Nxe5 {[%clk 0:02:59]} 9. Be2 {[%clk 0:03:01]}  a5 {[%clk 0:02:57]} 10. O-O {[%clk 0:02:59]}  d6 {[%clk 0:02:58]} 11. a3 {[%clk 0:02:58]}  Bc5 {[%clk 0:02:58]} 12. Ne4 {[%clk 0:02:55]}  Bb6 {[%clk 0:02:56]} 13. Nc3 {[%clk 0:02:52]}  c6 {[%clk 0:02:56]} 14. b3 {[%clk 0:02:49]}  O-O {[%clk 0:02:52]} 15. Qd2 {[%clk 0:02:47]}  Be6 {[%clk 0:02:51]} 16. e4 {[%clk 0:02:44]}  h6 {[%clk 0:02:38]} 17. Be3 {[%clk 0:02:43]}  Bxe3 {[%clk 0:02:33]} 18. Qxe3 {[%clk 0:02:44]}  f5 {[%clk 0:02:09]} 19. f4 {[%clk 0:02:39]}  Ng6 {[%clk 0:02:08]} 20. exf5 {[%clk 0:02:38]}  Bxf5 {[%clk 0:02:09]} 21. Qxe7 {[%clk 0:02:35]}  Nxe7 {[%clk 0:02:10]} 22. Rad1 {[%clk 0:02:28]}  Rad8 {[%clk 0:02:08]} 23. Bd3 {[%clk 0:02:27]}  d5 {[%clk 0:02:01]} 24. cxd5 {[%clk 0:02:23]}  Bxd3 {[%clk 0:01:55]} 25. Rxd3 {[%clk 0:02:22]}  Nxd5 {[%clk 0:01:55]} 26. Nxd5 {[%clk 0:02:22]}  Rxd5 {[%clk 0:01:55]} 27. Rxd5 {[%clk 0:02:22]}  cxd5 {[%clk 0:01:56]} 28. g3 {[%clk 0:02:18]}  Rc8 {[%clk 0:01:48]} 29. Rd1 {[%clk 0:02:17]}  Rc5 {[%clk 0:01:48]} 30. a4 {[%clk 0:02:12]}  Kf7 {[%clk 0:01:48]} 31. Kf2 {[%clk 0:02:11]}  Ke6 {[%clk 0:01:47]} 32. Ke3 {[%clk 0:02:10]}  b5 {[%clk 0:01:23]} 33. Kd4 {[%clk 0:02:09]}  Kd6 {[%clk 0:01:22]} 34. axb5 {[%clk 0:01:52]}  Rxb5 {[%clk 0:01:22]} 35. Kc3 {[%clk 0:01:48]}  Kc5 {[%clk 0:01:12]} 36. Re1 {[%clk 0:01:48]}  Rb7 {[%clk 0:01:05]} 37. Re6 {[%clk 0:01:44]}  d4+ {[%clk 0:00:49]} 38. Kc2 {[%clk 0:01:40]}  d3+ {[%clk 0:00:43]} 39. Kxd3 {[%clk 0:01:29]}  Rxb3+ {[%clk 0:00:42]} 40. Ke4 {[%clk 0:01:29]}  Rb6 {[%clk 0:00:27]} 41. Re7 {[%clk 0:01:28]}  g6 {[%clk 0:00:19]} 42. g4 {[%clk 0:01:19]}  a4 {[%clk 0:00:18]} 43. Ra7 {[%clk 0:01:18]}  Kb5 {[%clk 0:00:18]} 44. f5 {[%clk 0:01:18]}  gxf5+ {[%clk 0:00:16]} 45. gxf5 {[%clk 0:01:19]}  Kb4 {[%clk 0:00:16]} 46. Ke5 {[%clk 0:01:17]}  Rb5+ {[%clk 0:00:14]} 47. Ke6 {[%clk 0:01:17]}  Ra5 {[%clk 0:00:13]} 48. Rxa5 {[%clk 0:01:12]}  Kxa5 {[%clk 0:00:14]} 49. f6 {[%clk 0:01:12]}  a3 {[%clk 0:00:15]} 50. f7 {[%clk 0:01:13]}  a2 {[%clk 0:00:16]} 51. f8=Q {[%clk 0:01:14]}  a1=Q {[%clk 0:00:16]} 52. Qa8+ {[%clk 0:01:13]}  Kb4 {[%clk 0:00:17]} 1-0


[Site "https://www.chess.com"]

[Event "Titled Tuesday Blitz April 18 Early 2023"]
[White "Kosteniuk, Alexandra"]
[Black "benny_aizenberg"]
[WhiteFideId "4128125"]
[WhiteElo "2453"]
[BlackElo "2564"]
[Result "1/2-1/2"]
[Round "07"]
[TimeControl "180+2"]
[Date "2023.04.18"]
[WhiteClock "0:00:07"]
[BlackClock "0:00:09"]

1. c4 {[%clk 0:03:00]}  f5 {[%clk 0:02:58]} 2. d3 {[%clk 0:02:59]}  Nf6 {[%clk 0:02:58]} 3. Nc3 {[%clk 0:02:59]}  g6 {[%clk 0:02:59]} 4. e4 {[%clk 0:02:59]}  d6 {[%clk 0:02:58]} 5. f4 {[%clk 0:02:57]}  Bg7 {[%clk 0:02:55]} 6. Nf3 {[%clk 0:02:57]}  O-O {[%clk 0:02:55]} 7. g3 {[%clk 0:02:42]}  Nc6 {[%clk 0:02:53]} 8. Bg2 {[%clk 0:02:41]}  e5 {[%clk 0:02:53]} 9. O-O {[%clk 0:02:37]}  h6 {[%clk 0:02:51]} 10. Nd5 {[%clk 0:02:32]}  fxe4 {[%clk 0:02:45]} 11. Nxf6+ {[%clk 0:02:32]}  Qxf6 {[%clk 0:02:45]} 12. dxe4 {[%clk 0:02:33]}  exf4 {[%clk 0:02:44]} 13. gxf4 {[%clk 0:02:32]}  Kh7 {[%clk 0:02:41]} 14. Rb1 {[%clk 0:02:25]}  Bg4 {[%clk 0:02:38]} 15. Be3 {[%clk 0:02:20]}  Rae8 {[%clk 0:02:33]} 16. Qd3 {[%clk 0:02:17]}  a5 {[%clk 0:02:06]} 17. a3 {[%clk 0:02:15]}  b6 {[%clk 0:02:05]} 18. Rf2 {[%clk 0:01:56]}  Nb8 {[%clk 0:02:02]} 19. Nd4 {[%clk 0:01:48]}  Nd7 {[%clk 0:02:00]} 20. b4 {[%clk 0:01:47]}  axb4 {[%clk 0:01:59]} 21. axb4 {[%clk 0:01:48]}  Be6 {[%clk 0:01:28]} 22. Nb5 {[%clk 0:01:44]}  Rc8 {[%clk 0:01:24]} 23. Na7 {[%clk 0:01:23]}  Ra8 {[%clk 0:01:23]} 24. Nc6 {[%clk 0:01:21]}  Qf7 {[%clk 0:01:21]} 25. f5 {[%clk 0:01:14]}  gxf5 {[%clk 0:01:19]} 26. exf5 {[%clk 0:01:14]}  Bxc4 {[%clk 0:01:20]} 27. Qe4 {[%clk 0:01:07]}  Nf6 {[%clk 0:01:18]} 28. Qh4 {[%clk 0:01:06]}  Bd5 {[%clk 0:01:17]} 29. Nd4 {[%clk 0:01:03]}  Ra3 {[%clk 0:01:03]} 30. Nc2 {[%clk 0:00:44]}  Ra2 {[%clk 0:00:53]} 31. Bd4 {[%clk 0:00:40]}  Rg8 {[%clk 0:00:47]} 32. Kh1 {[%clk 0:00:36]}  Nd7 {[%clk 0:00:20]} 33. Bxg7 {[%clk 0:00:27]}  Rxg7 {[%clk 0:00:20]} 34. Rg1 {[%clk 0:00:13]}  Ne5 {[%clk 0:00:17]} 35. f6 {[%clk 0:00:13]}  Rg4 {[%clk 0:00:16]} 36. Qh3 {[%clk 0:00:12]}  Rxg2 {[%clk 0:00:14]} 37. Rgxg2 {[%clk 0:00:11]}  Qg6 {[%clk 0:00:14]} 38. f7 {[%clk 0:00:09]}  Nxf7 {[%clk 0:00:15]} 39. Rxf7+ {[%clk 0:00:05]}  Qxf7 {[%clk 0:00:14]} 40. Qd3+ {[%clk 0:00:05]}  Kh8 {[%clk 0:00:08]} 41. Qd4+ {[%clk 0:00:06]}  Kh7 {[%clk 0:00:08]} 42. Qd3+ {[%clk 0:00:06]}  Kh8 {[%clk 0:00:09]} 43. Qd4+ {[%clk 0:00:07]}  Kh7 {[%clk 0:00:09]} 44. Qd3+ {[%clk 0:00:07]} 1/2-1/2


[Site "https://www.chess.com"]

[Event "Titled Tuesday Blitz April 18 Early 2023"]
[White "jinbojinbo"]
[Black "Shohat, Yotam"]
[BlackFideId "2813955"]
[WhiteElo "2707"]
[BlackElo "2226"]
[Result "1-0"]
[Round "07"]
[TimeControl "180+2"]
[Date "2023.04.18"]
[WhiteClock "0:00:44"]
[BlackClock "0:00:05"]

1. g3 {[%clk 0:03:00]}  e5 {[%clk 0:02:59]} 2. Bg2 {[%clk 0:03:01]}  d5 {[%clk 0:02:59]} 3. d3 {[%clk 0:02:58]}  c6 {[%clk 0:02:54]} 4. Nf3 {[%clk 0:02:56]}  Bd6 {[%clk 0:02:52]} 5. e4 {[%clk 0:02:51]}  Nf6 {[%clk 0:02:51]} 6. Nc3 {[%clk 0:02:44]}  d4 {[%clk 0:02:46]} 7. Ne2 {[%clk 0:02:44]}  c5 {[%clk 0:02:42]} 8. O-O {[%clk 0:02:44]}  Nc6 {[%clk 0:02:42]} 9. Nh4 {[%clk 0:02:34]}  O-O {[%clk 0:02:34]} 10. h3 {[%clk 0:02:29]}  Re8 {[%clk 0:02:32]} 11. Nf5 {[%clk 0:02:19]}  Bxf5 {[%clk 0:02:26]} 12. exf5 {[%clk 0:02:19]}  e4 {[%clk 0:02:27]} 13. dxe4 {[%clk 0:02:15]}  Nxe4 {[%clk 0:02:26]} 14. Bf4 {[%clk 0:01:50]}  Qf6 {[%clk 0:02:08]} 15. Bxd6 {[%clk 0:01:45]}  Nxd6 {[%clk 0:02:05]} 16. g4 {[%clk 0:01:43]}  g5 {[%clk 0:01:14]} 17. Ng3 {[%clk 0:01:35]}  Qe5 {[%clk 0:00:52]} 18. Qd2 {[%clk 0:01:29]}  h6 {[%clk 0:00:31]} 19. Rae1 {[%clk 0:01:25]}  Nc4 {[%clk 0:00:31]} 20. Qc1 {[%clk 0:01:08]}  Qd6 {[%clk 0:00:26]} 21. b3 {[%clk 0:01:02]}  Nb6 {[%clk 0:00:21]} 22. Ne4 {[%clk 0:01:01]}  Qe7 {[%clk 0:00:17]} 23. f4 {[%clk 0:00:59]}  f6 {[%clk 0:00:13]} 24. Nxg5 {[%clk 0:00:55]}  hxg5 {[%clk 0:00:13]} 25. Rxe7 {[%clk 0:00:55]}  Rxe7 {[%clk 0:00:14]} 26. fxg5 {[%clk 0:00:55]}  Re3 {[%clk 0:00:13]} 27. gxf6 {[%clk 0:00:54]}  Ne5 {[%clk 0:00:12]} 28. Re1 {[%clk 0:00:50]}  Rxe1+ {[%clk 0:00:04]} 29. Qxe1 {[%clk 0:00:51]}  Re8 {[%clk 0:00:05]} 30. Qh4 {[%clk 0:00:50]}  Nf7 {[%clk 0:00:05]} 31. g5 {[%clk 0:00:44]} 1-0


[Site "https://www.chess.com"]

[Event "Titled Tuesday Blitz April 18 Early 2023"]
[White "Prohaszka, Peter"]
[Black "Sousa, Andre Ventura"]
[WhiteFideId "726265"]
[BlackFideId "1917617"]
[WhiteElo "2626"]
[BlackElo "2348"]
[Result "0-1"]
[Round "07"]
[TimeControl "180+2"]
[Date "2023.04.18"]
[WhiteClock "0:00:04"]
[BlackClock "0:00:28"]

1. d4 {[%clk 0:03:00]}  Nf6 {[%clk 0:03:00]} 2. Bf4 {[%clk 0:03:00]}  e6 {[%clk 0:02:59]} 3. Nd2 {[%clk 0:03:00]}  c5 {[%clk 0:02:51]} 4. e3 {[%clk 0:03:00]}  b6 {[%clk 0:02:51]} 5. Ngf3 {[%clk 0:02:48]}  Be7 {[%clk 0:02:50]} 6. Nc4 {[%clk 0:02:42]}  d5 {[%clk 0:02:30]} 7. Nce5 {[%clk 0:02:41]}  O-O {[%clk 0:02:30]} 8. c3 {[%clk 0:02:38]}  Ne4 {[%clk 0:02:26]} 9. h4 {[%clk 0:02:30]}  f6 {[%clk 0:02:22]} 10. Nd3 {[%clk 0:02:29]}  c4 {[%clk 0:02:17]} 11. Nc1 {[%clk 0:02:24]}  Nc6 {[%clk 0:02:14]} 12. Ne2 {[%clk 0:02:14]}  Bd7 {[%clk 0:02:03]} 13. Nd2 {[%clk 0:02:03]}  Nd6 {[%clk 0:01:58]} 14. Bh2 {[%clk 0:01:48]}  Be8 {[%clk 0:01:48]} 15. Nf4 {[%clk 0:01:38]}  Bf7 {[%clk 0:01:49]} 16. Be2 {[%clk 0:01:39]}  e5 {[%clk 0:01:46]} 17. Nh5 {[%clk 0:01:36]}  g6 {[%clk 0:01:32]} 18. Ng3 {[%clk 0:01:32]}  e4 {[%clk 0:01:32]} 19. h5 {[%clk 0:01:27]}  f5 {[%clk 0:01:33]} 20. hxg6 {[%clk 0:01:25]}  hxg6 {[%clk 0:01:34]} 21. f3 {[%clk 0:01:17]}  Bh4 {[%clk 0:01:29]} 22. Nf1 {[%clk 0:01:03]}  Qg5 {[%clk 0:01:00]} 23. f4 {[%clk 0:00:58]}  Qe7 {[%clk 0:01:00]} 24. Bg1 {[%clk 0:00:54]}  b5 {[%clk 0:00:59]} 25. Bf2 {[%clk 0:00:53]}  Bf6 {[%clk 0:00:59]} 26. Nd2 {[%clk 0:00:46]}  b4 {[%clk 0:00:57]} 27. Qa4 {[%clk 0:00:45]}  bxc3 {[%clk 0:00:54]} 28. bxc3 {[%clk 0:00:43]}  Rfc8 {[%clk 0:00:51]} 29. Rb1 {[%clk 0:00:43]}  Be8 {[%clk 0:00:51]} 30. Qa3 {[%clk 0:00:39]}  Rab8 {[%clk 0:00:50]} 31. O-O {[%clk 0:00:40]}  Nb5 {[%clk 0:00:45]} 32. Qxe7 {[%clk 0:00:24]}  Bxe7 {[%clk 0:00:46]} 33. Rbc1 {[%clk 0:00:21]}  Ba3 {[%clk 0:00:44]} 34. Rc2 {[%clk 0:00:22]}  Rb6 {[%clk 0:00:34]} 35. Nb1 {[%clk 0:00:17]}  Bd6 {[%clk 0:00:33]} 36. Rfc1 {[%clk 0:00:12]}  Rcb8 {[%clk 0:00:34]} 37. Nf1 {[%clk 0:00:12]}  Na3 {[%clk 0:00:31]} 38. Nxa3 {[%clk 0:00:12]}  Bxa3 {[%clk 0:00:32]} 39. Rd1 {[%clk 0:00:11]}  Rb1 {[%clk 0:00:32]} 40. Kh2 {[%clk 0:00:10]}  Rxd1 {[%clk 0:00:32]} 41. Bxd1 {[%clk 0:00:11]}  Rb1 {[%clk 0:00:33]} 42. Be2 {[%clk 0:00:11]}  Nd8 {[%clk 0:00:30]} 43. g4 {[%clk 0:00:11]}  Ba4 {[%clk 0:00:30]} 44. Rd2 {[%clk 0:00:11]}  Bb2 {[%clk 0:00:28]} 45. gxf5 {[%clk 0:00:10]}  Bxc3 {[%clk 0:00:27]} 46. fxg6 {[%clk 0:00:08]}  Bxd2 {[%clk 0:00:27]} 47. Nxd2 {[%clk 0:00:09]}  Rb2 {[%clk 0:00:28]} 48. Bh4 {[%clk 0:00:09]}  Rxd2 {[%clk 0:00:27]} 49. Bxd8 {[%clk 0:00:10]}  Rxe2+ {[%clk 0:00:28]} 50. Kg3 {[%clk 0:00:11]}  Kg7 {[%clk 0:00:28]} 51. f5 {[%clk 0:00:11]}  Rxe3+ {[%clk 0:00:28]} 52. Kf4 {[%clk 0:00:11]}  Rf3+ {[%clk 0:00:29]} 53. Kg5 {[%clk 0:00:11]}  Be8 {[%clk 0:00:25]} 54. f6+ {[%clk 0:00:10]}  Kg8 {[%clk 0:00:25]} 55. Be7 {[%clk 0:00:04]}  c3 {[%clk 0:00:25]} 56. Ba3 {[%clk 0:00:02]}  c2 {[%clk 0:00:25]} 57. Bc1 {[%clk 0:00:02]}  e3 {[%clk 0:00:25]} 58. a4 {[%clk 0:00:02]}  e2 {[%clk 0:00:26]} 59. f7+ {[%clk 0:00:02]}  Bxf7 {[%clk 0:00:26]} 60. gxf7+ {[%clk 0:00:02]}  Rxf7 {[%clk 0:00:27]} 61. Bd2 {[%clk 0:00:02]}  e1=Q {[%clk 0:00:27]} 62. Bxe1 {[%clk 0:00:03]}  c1=Q+ {[%clk 0:00:27]} 63. Kg4 {[%clk 0:00:04]}  Qf4+ {[%clk 0:00:27]} 64. Kh3 {[%clk 0:00:03]}  Rh7+ {[%clk 0:00:27]} 65. Kg2 {[%clk 0:00:04]}  Rh2+ {[%clk 0:00:27]} 66. Kg1 {[%clk 0:00:04]}  Re2 {[%clk 0:00:27]} 67. Bh4 {[%clk 0:00:03]}  Qxh4 {[%clk 0:00:26]} 68. a5 {[%clk 0:00:04]}  Qf2+ {[%clk 0:00:27]} 69. Kh1 {[%clk 0:00:04]}  Qg2# {[%clk 0:00:28]} 0-1


[Site "https://www.chess.com"]

[Event "Titled Tuesday Blitz April 18 Early 2023"]
[White "Dushyant Sharma"]
[Black "Matinian, Nikita"]
[WhiteFideId "25065130"]
[BlackFideId "24129100"]
[WhiteElo "2198"]
[BlackElo "2422"]
[Result "1-0"]
[Round "07"]
[TimeControl "180+2"]
[Date "2023.04.18"]
[WhiteClock "0:00:02"]
[BlackClock "0:00:02"]

1. e4 {[%clk 0:02:56]}  c5 {[%clk 0:02:58]} 2. Nf3 {[%clk 0:02:56]}  e6 {[%clk 0:02:59]} 3. d4 {[%clk 0:02:57]}  cxd4 {[%clk 0:03:00]} 4. Nxd4 {[%clk 0:02:57]}  Nc6 {[%clk 0:03:01]} 5. Nc3 {[%clk 0:02:58]}  Qc7 {[%clk 0:03:01]} 6. f4 {[%clk 0:02:58]}  a6 {[%clk 0:02:59]} 7. Be3 {[%clk 0:02:59]}  b5 {[%clk 0:02:52]} 8. Bd3 {[%clk 0:02:58]}  Bb7 {[%clk 0:02:51]} 9. Nb3 {[%clk 0:02:57]}  Bb4 {[%clk 0:02:41]} 10. O-O {[%clk 0:02:53]}  Nge7 {[%clk 0:02:38]} 11. Qg4 {[%clk 0:02:51]}  Ng6 {[%clk 0:02:27]} 12. a3 {[%clk 0:02:11]}  h5 {[%clk 0:02:11]} 13. Qh3 {[%clk 0:02:09]}  Be7 {[%clk 0:02:10]} 14. Kh1 {[%clk 0:02:00]}  h4 {[%clk 0:02:09]} 15. Rad1 {[%clk 0:01:57]}  O-O-O {[%clk 0:02:05]} 16. a4 {[%clk 0:01:39]}  b4 {[%clk 0:02:05]} 17. Ne2 {[%clk 0:01:40]}  Kb8 {[%clk 0:01:33]} 18. c3 {[%clk 0:01:14]}  d5 {[%clk 0:01:26]} 19. e5 {[%clk 0:01:10]}  bxc3 {[%clk 0:01:14]} 20. bxc3 {[%clk 0:01:09]}  Nf8 {[%clk 0:00:49]} 21. Rb1 {[%clk 0:01:03]}  Nd7 {[%clk 0:00:49]} 22. Bxa6 {[%clk 0:00:50]}  Ka8 {[%clk 0:00:28]} 23. Bxb7+ {[%clk 0:00:47]}  Qxb7 {[%clk 0:00:29]} 24. Nbd4 {[%clk 0:00:28]}  Qa6 {[%clk 0:00:29]} 25. Nb5 {[%clk 0:00:28]}  Rc8 {[%clk 0:00:29]} 26. Ned4 {[%clk 0:00:22]}  Na5 {[%clk 0:00:28]} 27. f5 {[%clk 0:00:19]}  Nc4 {[%clk 0:00:11]} 28. fxe6 {[%clk 0:00:16]}  fxe6 {[%clk 0:00:12]} 29. Nxe6 {[%clk 0:00:16]}  Bd8 {[%clk 0:00:12]} 30. Nxd8 {[%clk 0:00:12]}  Rhxd8 {[%clk 0:00:13]} 31. Bg5 {[%clk 0:00:12]}  Qc6 {[%clk 0:00:05]} 32. Bxd8 {[%clk 0:00:08]}  Rxd8 {[%clk 0:00:05]} 33. e6 {[%clk 0:00:08]}  Nf6 {[%clk 0:00:04]} 34. e7 {[%clk 0:00:06]}  Re8 {[%clk 0:00:04]} 35. Qd3 {[%clk 0:00:03]}  Rxe7 {[%clk 0:00:04]} 36. Qd4 {[%clk 0:00:03]}  Rd7 {[%clk 0:00:02]} 37. Rbe1 {[%clk 0:00:03]}  Ne4 {[%clk 0:00:01]} 38. Rf8+ {[%clk 0:00:02]}  Kb7 {[%clk 0:00:02]} 39. Qa7# {[%clk 0:00:02]} 1-0


[Site "https://www.chess.com"]

[Event "Titled Tuesday Blitz April 18 Early 2023"]
[White "Eynullayev, Atilla"]
[Black "Martinez Ramirez, Lennis"]
[WhiteFideId "13413570"]
[BlackFideId "3509079"]
[WhiteElo "2181"]
[BlackElo "2410"]
[Result "1-0"]
[Round "07"]
[TimeControl "180+2"]
[Date "2023.04.18"]
[WhiteClock "0:00:22"]
[BlackClock "0:00:51"]

1. d4 {[%clk 0:03:00]}  c5 {[%clk 0:02:59]} 2. d5 {[%clk 0:03:00]}  Nf6 {[%clk 0:02:59]} 3. c4 {[%clk 0:03:00]}  g6 {[%clk 0:02:59]} 4. Nc3 {[%clk 0:03:00]}  e6 {[%clk 0:02:59]} 5. e4 {[%clk 0:03:00]}  exd5 {[%clk 0:02:59]} 6. cxd5 {[%clk 0:03:01]}  d6 {[%clk 0:02:59]} 7. f4 {[%clk 0:03:00]}  Bg7 {[%clk 0:03:00]} 8. Bb5+ {[%clk 0:03:01]}  Nfd7 {[%clk 0:03:00]} 9. Bd3 {[%clk 0:03:00]}  O-O {[%clk 0:03:00]} 10. Nf3 {[%clk 0:03:01]}  Na6 {[%clk 0:02:50]} 11. O-O {[%clk 0:03:01]}  Nb4 {[%clk 0:02:50]} 12. Bb1 {[%clk 0:02:58]}  c4 {[%clk 0:02:50]} 13. a3 {[%clk 0:02:55]}  Qb6+ {[%clk 0:02:40]} 14. Kh1 {[%clk 0:02:55]}  Na6 {[%clk 0:02:40]} 15. f5 {[%clk 0:02:55]}  Nac5 {[%clk 0:02:34]} 16. Bc2 {[%clk 0:02:44]}  h6 {[%clk 0:02:13]} 17. Be3 {[%clk 0:02:37]}  Qxb2 {[%clk 0:02:09]} 18. Bd2 {[%clk 0:01:32]}  Bxc3 {[%clk 0:01:55]} 19. Rb1 {[%clk 0:01:32]}  Qxa3 {[%clk 0:01:55]} 20. Bxh6 {[%clk 0:01:33]}  Bg7 {[%clk 0:01:52]} 21. Bxg7 {[%clk 0:01:27]}  Kxg7 {[%clk 0:01:52]} 22. Qd4+ {[%clk 0:01:25]}  f6 {[%clk 0:01:51]} 23. fxg6 {[%clk 0:01:24]}  Ne5 {[%clk 0:01:51]} 24. Ra1 {[%clk 0:01:13]}  Nxf3 {[%clk 0:01:21]} 25. Rxf3 {[%clk 0:00:38]}  Qb4 {[%clk 0:01:20]} 26. Raf1 {[%clk 0:00:26]}  Nd7 {[%clk 0:01:19]} 27. e5 {[%clk 0:00:23]}  Nxe5 {[%clk 0:01:14]} 28. Qh4 {[%clk 0:00:22]}  f5 {[%clk 0:00:51]} 29. Qh7+ {[%clk 0:00:21]}  Kf6 {[%clk 0:00:51]} 30. Rxf5+ {[%clk 0:00:22]}  Bxf5 {[%clk 0:00:51]} 31. Rxf5# {[%clk 0:00:22]} 1-0


[Site "https://www.chess.com"]

[Event "Titled Tuesday Blitz April 18 Early 2023"]
[White "Ronka, Erik"]
[Black "Jaferian, Koosha"]
[WhiteFideId "505080"]
[BlackFideId "12507440"]
[WhiteElo "2264"]
[BlackElo "2073"]
[Result "1-0"]
[Round "07"]
[TimeControl "180+2"]
[Date "2023.04.18"]
[WhiteClock "0:00:04"]
[BlackClock "0:00:02"]

1. e4 {[%clk 0:03:00]}  c6 {[%clk 0:02:57]} 2. Nf3 {[%clk 0:02:59]}  d5 {[%clk 0:02:55]} 3. Nc3 {[%clk 0:02:59]}  Bg4 {[%clk 0:02:55]} 4. h3 {[%clk 0:02:58]}  Bxf3 {[%clk 0:02:56]} 5. Qxf3 {[%clk 0:02:57]}  e6 {[%clk 0:02:56]} 6. d4 {[%clk 0:02:57]}  Nf6 {[%clk 0:02:56]} 7. Bd3 {[%clk 0:02:55]}  dxe4 {[%clk 0:02:55]} 8. Nxe4 {[%clk 0:02:56]}  Qxd4 {[%clk 0:02:55]} 9. c3 {[%clk 0:02:53]}  Qd8 {[%clk 0:02:51]} 10. O-O {[%clk 0:02:52]}  Nbd7 {[%clk 0:02:51]} 11. Rd1 {[%clk 0:02:42]}  Be7 {[%clk 0:02:46]} 12. Bf4 {[%clk 0:02:28]}  O-O {[%clk 0:02:45]} 13. Rd2 {[%clk 0:02:27]}  Qa5 {[%clk 0:02:36]} 14. a3 {[%clk 0:02:10]}  Nxe4 {[%clk 0:02:35]} 15. Bxe4 {[%clk 0:01:54]}  Nf6 {[%clk 0:02:35]} 16. b4 {[%clk 0:01:42]}  Qb6 {[%clk 0:02:18]} 17. Be3 {[%clk 0:01:32]}  Qc7 {[%clk 0:02:18]} 18. Bc2 {[%clk 0:01:26]}  Rfd8 {[%clk 0:02:13]} 19. Rad1 {[%clk 0:01:24]}  Rxd2 {[%clk 0:02:12]} 20. Rxd2 {[%clk 0:01:25]}  Rd8 {[%clk 0:02:13]} 21. Rxd8+ {[%clk 0:01:18]}  Bxd8 {[%clk 0:02:13]} 22. Bxa7 {[%clk 0:01:03]}  b6 {[%clk 0:02:10]} 23. Qd3 {[%clk 0:01:03]}  g6 {[%clk 0:01:54]} 24. a4 {[%clk 0:00:50]}  Nd5 {[%clk 0:01:47]} 25. Qa6 {[%clk 0:00:37]}  Nxc3 {[%clk 0:01:07]} 26. Bb3 {[%clk 0:00:23]}  Nd5 {[%clk 0:00:52]} 27. Bxd5 {[%clk 0:00:12]}  cxd5 {[%clk 0:00:53]} 28. a5 {[%clk 0:00:09]}  Qc1+ {[%clk 0:00:41]} 29. Kh2 {[%clk 0:00:09]}  bxa5 {[%clk 0:00:37]} 30. b5 {[%clk 0:00:09]}  Qf4+ {[%clk 0:00:15]} 31. g3 {[%clk 0:00:08]}  Qd2 {[%clk 0:00:15]} 32. Qc6 {[%clk 0:00:06]}  Bf6 {[%clk 0:00:13]} 33. Be3 {[%clk 0:00:04]}  Qb2 {[%clk 0:00:11]} 34. b6 {[%clk 0:00:05]}  Bd4 {[%clk 0:00:12]} 35. Bxd4 {[%clk 0:00:03]}  Qxd4 {[%clk 0:00:12]} 36. Kg2 {[%clk 0:00:02]}  Qe4+ {[%clk 0:00:13]} 37. Kg1 {[%clk 0:00:03]}  Qe1+ {[%clk 0:00:13]} 38. Kg2 {[%clk 0:00:03]}  Qe4+ {[%clk 0:00:14]} 39. Kg1 {[%clk 0:00:04]}  Qb1+ {[%clk 0:00:14]} 40. Kg2 {[%clk 0:00:04]}  a4 {[%clk 0:00:09]} 41. Qc7 {[%clk 0:00:04]}  Kg7 {[%clk 0:00:04]} 42. b7 {[%clk 0:00:04]}  Qe4+ {[%clk 0:00:04]} 43. Kh2 {[%clk 0:00:04]}  Qf3 {[%clk 0:00:02]} 44. Qe5+ {[%clk 0:00:04]}  Kh6 {[%clk 0:00:02]} 45. Qe3+ {[%clk 0:00:03]}  Qxe3 {[%clk 0:00:02]} 46. fxe3 {[%clk 0:00:04]} 1-0


[Site "https://www.chess.com"]

[Event "Titled Tuesday Blitz April 18 Early 2023"]
[White "Grigoriants, Sergey"]
[Black "Belov, Alexei"]
[WhiteFideId "4130804"]
[BlackFideId "4128206"]
[WhiteElo "2502"]
[BlackElo "2488"]
[Result "1-0"]
[Round "07"]
[TimeControl "180+2"]
[Date "2023.04.18"]
[WhiteClock "0:01:09"]
[BlackClock "0:01:26"]

1. d4 {[%clk 0:02:53]}  e6 {[%clk 0:02:59]} 2. c4 {[%clk 0:02:52]}  d5 {[%clk 0:02:59]} 3. Nf3 {[%clk 0:02:52]}  Nf6 {[%clk 0:02:59]} 4. g3 {[%clk 0:02:53]}  Be7 {[%clk 0:02:59]} 5. Bg2 {[%clk 0:02:52]}  O-O {[%clk 0:03:00]} 6. Qc2 {[%clk 0:02:53]}  dxc4 {[%clk 0:02:57]} 7. Qxc4 {[%clk 0:02:53]}  a6 {[%clk 0:02:57]} 8. Qc2 {[%clk 0:02:52]}  Nc6 {[%clk 0:02:39]} 9. O-O {[%clk 0:02:32]}  Nxd4 {[%clk 0:02:35]} 10. Nxd4 {[%clk 0:02:32]}  Qxd4 {[%clk 0:02:35]} 11. Qxc7 {[%clk 0:02:26]}  Qc5 {[%clk 0:02:22]} 12. Qxc5 {[%clk 0:01:54]}  Bxc5 {[%clk 0:02:22]} 13. Nc3 {[%clk 0:01:55]}  e5 {[%clk 0:01:59]} 14. Bg5 {[%clk 0:01:54]}  Rb8 {[%clk 0:01:47]} 15. Rac1 {[%clk 0:01:37]}  Be6 {[%clk 0:01:38]} 16. Bxf6 {[%clk 0:01:30]}  gxf6 {[%clk 0:01:37]} 17. Rfd1 {[%clk 0:01:31]}  b5 {[%clk 0:01:31]} 18. Nd5 {[%clk 0:01:10]}  Kg7 {[%clk 0:01:26]} 19. Rxc5 {[%clk 0:01:09]} 1-0


[Site "https://www.chess.com"]